[Event "Titled Tuesday Blitz June 21 Early 2022"]
[White "Kosakowski, Jakub"]
[Black "Fier, Alexandr"]
[WhiteFideId "1185080"]
[BlackFideId "2107139"]
[WhiteElo "2476"]
[BlackElo "2571"]
[Result "1-0"]
[Round "08"]
[TimeControl "180+1"]
[Date "2022.06.21"]
[WhiteClock "0:01:12"]
[BlackClock "0:01:59"]

1. e4 {[%clk 0:02:28]}  Nf6 {[%clk 0:03:00]} 2. e5 {[%clk 0:02:28]}  Nd5 {[%clk 0:03:01]} 3. d4 {[%clk 0:02:28]}  d6 {[%clk 0:03:01]} 4. Nf3 {[%clk 0:02:29]}  g6 {[%clk 0:03:01]} 5. Bc4 {[%clk 0:02:26]}  Nb6 {[%clk 0:03:02]} 6. Bb3 {[%clk 0:02:25]}  Bg7 {[%clk 0:03:02]} 7. O-O {[%clk 0:02:25]}  O-O {[%clk 0:03:02]} 8. h3 {[%clk 0:02:25]}  Nc6 {[%clk 0:03:01]} 9. Qe2 {[%clk 0:02:25]}  Na5 {[%clk 0:03:02]} 10. Nbd2 {[%clk 0:02:24]}  Nxb3 {[%clk 0:03:00]} 11. axb3 {[%clk 0:02:23]}  a5 {[%clk 0:03:01]} 12. Re1 {[%clk 0:02:21]}  Bd7 {[%clk 0:03:01]} 13. Ne4 {[%clk 0:02:18]}  Bc6 {[%clk 0:03:01]} 14. Bg5 {[%clk 0:02:17]}  f6 {[%clk 0:03:01]} 15. Bh4 {[%clk 0:02:15]}  Qd7 {[%clk 0:03:00]} 16. Rad1 {[%clk 0:02:14]}  a4 {[%clk 0:02:56]} 17. c4 {[%clk 0:02:02]}  Bxe4 {[%clk 0:02:55]} 18. Qxe4 {[%clk 0:02:02]}  axb3 {[%clk 0:02:55]} 19. exd6 {[%clk 0:01:50]}  exd6 {[%clk 0:02:54]} 20. c5 {[%clk 0:01:50]}  d5 {[%clk 0:02:48]} 21. Qd3 {[%clk 0:01:41]}  Nc4 {[%clk 0:02:48]} 22. Qxb3 {[%clk 0:01:41]}  c6 {[%clk 0:02:48]} 23. Qc3 {[%clk 0:01:39]}  Rfe8 {[%clk 0:02:35]} 24. Bg3 {[%clk 0:01:37]}  Kf7 {[%clk 0:02:28]} 25. Rxe8 {[%clk 0:01:31]}  Rxe8 {[%clk 0:02:27]} 26. Ra1 {[%clk 0:01:31]}  Re2 {[%clk 0:02:16]} 27. b3 {[%clk 0:01:27]}  Nb2 {[%clk 0:02:16]} 28. Rb1 {[%clk 0:01:24]}  h5 {[%clk 0:02:03]} 29. Rxb2 {[%clk 0:01:24]}  Qe6 {[%clk 0:02:04]} 30. Ne5+ {[%clk 0:01:21]}  Rxe5 {[%clk 0:02:03]} 31. dxe5 {[%clk 0:01:21]}  fxe5 {[%clk 0:02:04]} 32. Qb4 {[%clk 0:01:15]}  Qe7 {[%clk 0:02:04]} 33. Re2 {[%clk 0:01:14]}  e4 {[%clk 0:02:03]} 34. Bd6 {[%clk 0:01:13]}  Qd7 {[%clk 0:02:03]} 35. f3 {[%clk 0:01:13]}  exf3 {[%clk 0:01:59]} 36. Qf4+ {[%clk 0:01:12]}  Kg8 {[%clk 0:01:59]} 37. Re7 {[%clk 0:01:12]} 1-0


[Site "https://www.chess.com"]

[Event "Titled Tuesday Blitz June 21 Early 2022"]
[White "Kozelov, Roman"]
[Black "Antonio, Jorge Carlos"]
[WhiteFideId "14133377"]
[BlackFideId "113190"]
[WhiteElo "2149"]
[BlackElo "2247"]
[Result "1/2-1/2"]
[Round "08"]
[TimeControl "180+1"]
[Date "2022.06.21"]
[WhiteClock "0:00:14"]
[BlackClock "0:00:21"]

1. e4 {[%clk 0:03:00]}  c5 {[%clk 0:02:57]} 2. Nf3 {[%clk 0:03:00]}  d6 {[%clk 0:02:56]} 3. Bb5+ {[%clk 0:02:59]}  Bd7 {[%clk 0:02:56]} 4. a4 {[%clk 0:02:59]}  a6 {[%clk 0:02:55]} 5. Bc4 {[%clk 0:02:59]}  Nc6 {[%clk 0:02:55]} 6. Nc3 {[%clk 0:02:59]}  e6 {[%clk 0:02:54]} 7. d4 {[%clk 0:02:58]}  cxd4 {[%clk 0:02:53]} 8. Nxd4 {[%clk 0:02:59]}  Nxd4 {[%clk 0:02:53]} 9. Qxd4 {[%clk 0:02:59]}  Ne7 {[%clk 0:02:49]} 10. O-O {[%clk 0:02:58]}  Nc6 {[%clk 0:02:49]} 11. Qe3 {[%clk 0:02:55]}  Be7 {[%clk 0:02:49]} 12. f4 {[%clk 0:02:47]}  O-O {[%clk 0:02:48]} 13. f5 {[%clk 0:02:47]}  Ne5 {[%clk 0:02:45]} 14. Bb3 {[%clk 0:02:46]}  Rc8 {[%clk 0:02:41]} 15. Qg3 {[%clk 0:02:43]}  Nc4 {[%clk 0:02:39]} 16. Kh1 {[%clk 0:02:15]}  Bf6 {[%clk 0:02:30]} 17. Bxc4 {[%clk 0:02:08]}  Rxc4 {[%clk 0:02:26]} 18. Qxd6 {[%clk 0:02:08]}  Bxc3 {[%clk 0:02:25]} 19. bxc3 {[%clk 0:02:07]}  Rxc3 {[%clk 0:02:25]} 20. fxe6 {[%clk 0:02:05]}  Bxe6 {[%clk 0:02:25]} 21. Qe5 {[%clk 0:01:55]}  Qc7 {[%clk 0:02:18]} 22. Qg5 {[%clk 0:01:51]}  Rxc2 {[%clk 0:02:12]} 23. Bf4 {[%clk 0:01:49]}  Qc5 {[%clk 0:02:01]} 24. Qg3 {[%clk 0:01:40]}  Rc3 {[%clk 0:02:00]} 25. Bd6 {[%clk 0:01:31]}  Rxg3 {[%clk 0:01:55]} 26. Bxc5 {[%clk 0:01:31]}  Rc8 {[%clk 0:01:28]} 27. hxg3 {[%clk 0:01:30]}  Rxc5 {[%clk 0:01:28]} 28. Rfb1 {[%clk 0:01:25]}  Rc7 {[%clk 0:01:22]} 29. Rb6 {[%clk 0:01:23]}  Kf8 {[%clk 0:01:09]} 30. Rab1 {[%clk 0:01:21]}  Bc8 {[%clk 0:01:08]} 31. Rd1 {[%clk 0:01:18]}  Ke7 {[%clk 0:01:06]} 32. Rd4 {[%clk 0:01:12]}  Bd7 {[%clk 0:00:58]} 33. Kg1 {[%clk 0:01:06]}  Bc6 {[%clk 0:00:58]} 34. Kf2 {[%clk 0:01:05]}  Kf6 {[%clk 0:00:58]} 35. Ke3 {[%clk 0:01:03]}  Re7 {[%clk 0:00:57]} 36. Rc4 {[%clk 0:00:57]}  Kg5 {[%clk 0:00:49]} 37. Kf3 {[%clk 0:00:39]}  f5 {[%clk 0:00:48]} 38. g4 {[%clk 0:00:31]}  Bxe4+ {[%clk 0:00:46]} 39. Kg3 {[%clk 0:00:31]}  f4+ {[%clk 0:00:43]} 40. Kf2 {[%clk 0:00:30]}  Bc6 {[%clk 0:00:43]} 41. Rbb4 {[%clk 0:00:28]}  Rf7 {[%clk 0:00:36]} 42. Rd4 {[%clk 0:00:23]}  Kxg4 {[%clk 0:00:36]} 43. g3 {[%clk 0:00:23]}  g5 {[%clk 0:00:33]} 44. gxf4 {[%clk 0:00:23]}  gxf4 {[%clk 0:00:33]} 45. Rd6 {[%clk 0:00:18]}  h5 {[%clk 0:00:32]} 46. Rg6+ {[%clk 0:00:16]}  Kf5 {[%clk 0:00:32]} 47. Rh6 {[%clk 0:00:15]}  Kg5 {[%clk 0:00:32]} 48. Rh8 {[%clk 0:00:15]}  Kg4 {[%clk 0:00:21]} 49. Rg8+ {[%clk 0:00:14]}  Kf5 {[%clk 0:00:20]} 50. Rh8 {[%clk 0:00:14]}  Kg4 {[%clk 0:00:20]} 51. Rg8+ {[%clk 0:00:14]}  Kf5 {[%clk 0:00:20]} 52. Rh8 {[%clk 0:00:14]}  Kg4 {[%clk 0:00:21]} 1/2-1/2


[Site "https://www.chess.com"]

[Event "Titled Tuesday Blitz June 21 Early 2022"]
[White "Kozlov, Oleg"]
[Black "Samunenkov, Ihor"]
[WhiteFideId "4104544"]
[BlackFideId "14187086"]
[WhiteElo "2132"]
[BlackElo "2409"]
[Result "0-1"]
[Round "08"]
[TimeControl "180+1"]
[Date "2022.06.21"]
[WhiteClock "0:02:09"]
[BlackClock "0:01:20"]

1. d4 {[%clk 0:03:00]}  d5 {[%clk 0:02:58]} 2. c4 {[%clk 0:03:01]}  e6 {[%clk 0:02:58]} 3. Nf3 {[%clk 0:03:00]}  Nf6 {[%clk 0:02:58]} 4. g3 {[%clk 0:03:01]}  dxc4 {[%clk 0:02:55]} 5. Bg2 {[%clk 0:03:01]}  c6 {[%clk 0:02:55]} 6. Ne5 {[%clk 0:03:00]}  Bb4+ {[%clk 0:02:55]} 7. Bd2 {[%clk 0:02:59]}  Be7 {[%clk 0:02:55]} 8. e3 {[%clk 0:02:58]}  b5 {[%clk 0:02:54]} 9. Nxc6 {[%clk 0:02:51]}  Nxc6 {[%clk 0:02:53]} 10. Bxc6+ {[%clk 0:02:51]}  Bd7 {[%clk 0:02:54]} 11. Qf3 {[%clk 0:02:38]}  Rc8 {[%clk 0:02:44]} 12. Bxd7+ {[%clk 0:02:30]}  Qxd7 {[%clk 0:02:45]} 13. O-O {[%clk 0:02:30]}  O-O {[%clk 0:02:33]} 14. a3 {[%clk 0:02:28]}  Qd5 {[%clk 0:01:57]} 15. Qe2 {[%clk 0:02:24]}  Qb7 {[%clk 0:01:41]} 16. Nc3 {[%clk 0:02:20]}  a5 {[%clk 0:01:39]} 17. a4 {[%clk 0:02:19]}  b4 {[%clk 0:01:38]} 18. Nb5 {[%clk 0:02:20]}  Ne4 {[%clk 0:01:32]} 19. Rfc1 {[%clk 0:02:19]}  Ng5 {[%clk 0:01:26]} 20. h4 {[%clk 0:02:12]}  Nf3+ {[%clk 0:01:21]} 21. Kf1 {[%clk 0:02:09]}  Nxd4 {[%clk 0:01:20]} 0-1


[Site "https://www.chess.com"]

[Event "Titled Tuesday Blitz June 21 Early 2022"]
[White "Lagno, Kateryna"]
[Black "Srbis, Jurica"]
[WhiteFideId "14109336"]
[BlackFideId "14515555"]
[WhiteElo "2522"]
[BlackElo "2519"]
[Result "1-0"]
[Round "08"]
[TimeControl "180+1"]
[Date "2022.06.21"]
[WhiteClock "0:00:19"]
[BlackClock "0:00:08"]

1. e4 {[%clk 0:03:00]}  e5 {[%clk 0:03:00]} 2. Nf3 {[%clk 0:03:01]}  Nc6 {[%clk 0:03:00]} 3. Nc3 {[%clk 0:03:00]}  Nf6 {[%clk 0:03:00]} 4. d4 {[%clk 0:03:01]}  exd4 {[%clk 0:03:01]} 5. Nxd4 {[%clk 0:03:01]}  Bc5 {[%clk 0:03:00]} 6. Be3 {[%clk 0:02:58]}  Bb6 {[%clk 0:03:00]} 7. Qd2 {[%clk 0:02:53]}  O-O {[%clk 0:03:00]} 8. O-O-O {[%clk 0:02:41]}  Re8 {[%clk 0:03:00]} 9. f3 {[%clk 0:02:36]}  d5 {[%clk 0:03:01]} 10. Bb5 {[%clk 0:02:28]}  Bd7 {[%clk 0:02:05]} 11. exd5 {[%clk 0:02:19]}  Nxd4 {[%clk 0:02:05]} 12. Bxd4 {[%clk 0:02:17]}  Bxb5 {[%clk 0:02:03]} 13. Nxb5 {[%clk 0:02:13]}  Qxd5 {[%clk 0:01:54]} 14. Nc3 {[%clk 0:02:12]}  Qc6 {[%clk 0:01:44]} 15. Qf4 {[%clk 0:02:01]}  Qc4 {[%clk 0:01:33]} 16. Kb1 {[%clk 0:02:00]}  Rad8 {[%clk 0:01:20]} 17. Be5 {[%clk 0:02:00]}  Qxf4 {[%clk 0:01:07]} 18. Bxf4 {[%clk 0:02:01]}  Rxd1+ {[%clk 0:01:07]} 19. Rxd1 {[%clk 0:02:00]}  c6 {[%clk 0:01:08]} 20. a4 {[%clk 0:01:43]}  h6 {[%clk 0:01:08]} 21. b4 {[%clk 0:01:40]}  g5 {[%clk 0:00:54]} 22. Bc1 {[%clk 0:01:39]}  a5 {[%clk 0:00:47]} 23. Ba3 {[%clk 0:01:30]}  axb4 {[%clk 0:00:47]} 24. Bxb4 {[%clk 0:01:30]}  Rd8 {[%clk 0:00:41]} 25. Rxd8+ {[%clk 0:01:18]}  Bxd8 {[%clk 0:00:41]} 26. Kb2 {[%clk 0:01:16]}  Bc7 {[%clk 0:00:41]} 27. h3 {[%clk 0:01:10]}  Kg7 {[%clk 0:00:41]} 28. Kb3 {[%clk 0:01:10]}  Nh5 {[%clk 0:00:41]} 29. Ne2 {[%clk 0:01:10]}  Kf6 {[%clk 0:00:41]} 30. Bc3+ {[%clk 0:01:07]}  Ke6 {[%clk 0:00:38]} 31. Kc4 {[%clk 0:01:05]}  Kd7 {[%clk 0:00:22]} 32. g4 {[%clk 0:01:02]}  Nf4 {[%clk 0:00:14]} 33. Nxf4 {[%clk 0:01:02]}  Bxf4 {[%clk 0:00:15]} 34. Bg7 {[%clk 0:01:02]}  Ke6 {[%clk 0:00:10]} 35. Bxh6 {[%clk 0:01:01]}  f6 {[%clk 0:00:11]} 36. Bf8 {[%clk 0:00:52]}  Kf7 {[%clk 0:00:10]} 37. Bb4 {[%clk 0:00:50]}  Ke6 {[%clk 0:00:11]} 38. Bc3 {[%clk 0:00:48]}  Bg3 {[%clk 0:00:11]} 39. Bd4 {[%clk 0:00:47]}  Bd6 {[%clk 0:00:12]} 40. Bf2 {[%clk 0:00:42]}  Ba3 {[%clk 0:00:11]} 41. h4 {[%clk 0:00:40]}  gxh4 {[%clk 0:00:12]} 42. Bxh4 {[%clk 0:00:40]}  Bd6 {[%clk 0:00:13]} 43. Bf2 {[%clk 0:00:39]}  Ba3 {[%clk 0:00:13]} 44. Be3 {[%clk 0:00:39]}  Bd6 {[%clk 0:00:13]} 45. f4 {[%clk 0:00:39]}  Ba3 {[%clk 0:00:14]} 46. Kd4 {[%clk 0:00:35]}  Bd6 {[%clk 0:00:13]} 47. Ke4 {[%clk 0:00:35]}  Ba3 {[%clk 0:00:13]} 48. f5+ {[%clk 0:00:35]}  Ke7 {[%clk 0:00:14]} 49. Bd4 {[%clk 0:00:34]}  Bd6 {[%clk 0:00:13]} 50. Kf3 {[%clk 0:00:34]}  Ba3 {[%clk 0:00:13]} 51. Kg3 {[%clk 0:00:35]}  Bd6+ {[%clk 0:00:13]} 52. Kh4 {[%clk 0:00:35]}  Kf7 {[%clk 0:00:14]} 53. Kh5 {[%clk 0:00:36]}  Bf4 {[%clk 0:00:15]} 54. Bc3 {[%clk 0:00:35]}  Bg5 {[%clk 0:00:15]} 55. Be1 {[%clk 0:00:34]}  Kg7 {[%clk 0:00:16]} 56. Bh4 {[%clk 0:00:31]}  Bd2 {[%clk 0:00:16]} 57. g5 {[%clk 0:00:31]}  fxg5 {[%clk 0:00:16]} 58. Bxg5 {[%clk 0:00:32]}  Bc3 {[%clk 0:00:17]} 59. Kg4 {[%clk 0:00:32]}  Kf7 {[%clk 0:00:14]} 60. Kf3 {[%clk 0:00:33]}  Bd4 {[%clk 0:00:15]} 61. Ke4 {[%clk 0:00:33]}  Bc3 {[%clk 0:00:16]} 62. Kd3 {[%clk 0:00:32]}  Bb4 {[%clk 0:00:16]} 63. Kc4 {[%clk 0:00:32]}  Bd6 {[%clk 0:00:17]} 64. Kd4 {[%clk 0:00:28]}  Ba3 {[%clk 0:00:16]} 65. Ke5 {[%clk 0:00:28]}  Bb4 {[%clk 0:00:16]} 66. Be3 {[%clk 0:00:26]}  Ba3 {[%clk 0:00:16]} 67. Bd4 {[%clk 0:00:26]}  Be7 {[%clk 0:00:16]} 68. c3 {[%clk 0:00:24]}  Ba3 {[%clk 0:00:15]} 69. f6 {[%clk 0:00:21]}  Bf8 {[%clk 0:00:15]} 70. c4 {[%clk 0:00:20]}  Bb4 {[%clk 0:00:15]} 71. c5 {[%clk 0:00:20]}  Ba3 {[%clk 0:00:05]} 72. Kd6 {[%clk 0:00:20]}  b6 {[%clk 0:00:05]} 73. Kxc6 {[%clk 0:00:19]}  bxc5 {[%clk 0:00:06]} 74. Bxc5 {[%clk 0:00:20]}  Bb2 {[%clk 0:00:07]} 75. Be7 {[%clk 0:00:20]}  Bc3 {[%clk 0:00:07]} 76. Kb5 {[%clk 0:00:20]}  Ke6 {[%clk 0:00:07]} 77. a5 {[%clk 0:00:20]}  Kd7 {[%clk 0:00:07]} 78. Kb6 {[%clk 0:00:19]}  Bd4+ {[%clk 0:00:08]} 79. Kb7 {[%clk 0:00:19]}  Ke6 {[%clk 0:00:08]} 80. a6 {[%clk 0:00:19]} 1-0


[Site "https://www.chess.com"]

[Event "Titled Tuesday Blitz June 21 Early 2022"]
[White "Lashkin, Jegor"]
[Black "Ibrahimli, Murad"]
[WhiteFideId "13907808"]
[BlackFideId "13410229"]
[WhiteElo "2368"]
[BlackElo "2109"]
[Result "1-0"]
[Round "08"]
[TimeControl "180+1"]
[Date "2022.06.21"]
[WhiteClock "0:00:48"]
[BlackClock "0:00:04"]

1. d4 {[%clk 0:03:00]}  d5 {[%clk 0:02:58]} 2. c4 {[%clk 0:03:01]}  c6 {[%clk 0:02:58]} 3. Nc3 {[%clk 0:03:00]}  Nf6 {[%clk 0:02:58]} 4. e3 {[%clk 0:03:00]}  e6 {[%clk 0:02:53]} 5. Nf3 {[%clk 0:03:00]}  Nbd7 {[%clk 0:02:50]} 6. Qc2 {[%clk 0:03:00]}  Bd6 {[%clk 0:02:46]} 7. Bd3 {[%clk 0:03:00]}  O-O {[%clk 0:02:46]} 8. O-O {[%clk 0:03:00]}  dxc4 {[%clk 0:02:45]} 9. Bxc4 {[%clk 0:03:01]}  a6 {[%clk 0:02:45]} 10. e4 {[%clk 0:02:44]}  e5 {[%clk 0:02:44]} 11. dxe5 {[%clk 0:02:44]}  Nxe5 {[%clk 0:02:45]} 12. Nxe5 {[%clk 0:02:44]}  Bxe5 {[%clk 0:02:46]} 13. h3 {[%clk 0:02:44]}  Be6 {[%clk 0:02:34]} 14. Bxe6 {[%clk 0:02:36]}  fxe6 {[%clk 0:02:34]} 15. Be3 {[%clk 0:02:33]}  Nh5 {[%clk 0:02:17]} 16. Ne2 {[%clk 0:02:28]}  Qh4 {[%clk 0:01:51]} 17. Rad1 {[%clk 0:02:27]}  Rae8 {[%clk 0:01:51]} 18. Rd7 {[%clk 0:02:20]}  Nf6 {[%clk 0:01:37]} 19. Rxb7 {[%clk 0:02:16]}  Ng4 {[%clk 0:01:37]} 20. Bd4 {[%clk 0:02:03]}  c5 {[%clk 0:00:27]} 21. Qxc5 {[%clk 0:01:40]}  Bxd4 {[%clk 0:00:18]} 22. Qxd4 {[%clk 0:01:40]}  Nf6 {[%clk 0:00:16]} 23. e5 {[%clk 0:01:27]}  Qxd4 {[%clk 0:00:13]} 24. Nxd4 {[%clk 0:01:28]}  Nd5 {[%clk 0:00:14]} 25. g3 {[%clk 0:01:19]}  h5 {[%clk 0:00:11]} 26. h4 {[%clk 0:01:18]}  g5 {[%clk 0:00:11]} 27. hxg5 {[%clk 0:01:18]}  h4 {[%clk 0:00:11]} 28. Kg2 {[%clk 0:01:06]}  hxg3 {[%clk 0:00:11]} 29. Kxg3 {[%clk 0:01:06]}  Rf4 {[%clk 0:00:12]} 30. Nc6 {[%clk 0:00:51]}  Rf5 {[%clk 0:00:08]} 31. f4 {[%clk 0:00:48]}  Ref8 {[%clk 0:00:04]} 32. Ne7+ {[%clk 0:00:47]}  Nxe7 {[%clk 0:00:05]} 33. Rxe7 {[%clk 0:00:48]}  Rxg5+ {[%clk 0:00:03]} 34. fxg5 {[%clk 0:00:48]}  Rxf1 {[%clk 0:00:04]} 35. Rxe6 {[%clk 0:00:49]}  Rb1 {[%clk 0:00:04]} 36. b3 {[%clk 0:00:48]} 1-0


[Site "https://www.chess.com"]

[Event "Titled Tuesday Blitz June 21 Early 2022"]
[White "Ljukin, Sergei"]
[Black "Shuvalova, Polina"]
[WhiteFideId "14102200"]
[BlackFideId "24171760"]
[WhiteElo "2312"]
[BlackElo "2330"]
[Result "0-1"]
[Round "08"]
[TimeControl "180+1"]
[Date "2022.06.21"]
[WhiteClock "0:00:37"]
[BlackClock "0:00:43"]

1. e4 {[%clk 0:02:52]}  c6 {[%clk 0:02:59]} 2. d4 {[%clk 0:02:51]}  d5 {[%clk 0:03:00]} 3. e5 {[%clk 0:02:52]}  Bf5 {[%clk 0:02:59]} 4. Nd2 {[%clk 0:02:52]}  e6 {[%clk 0:02:59]} 5. Nb3 {[%clk 0:02:52]}  Ne7 {[%clk 0:02:58]} 6. Nf3 {[%clk 0:02:53]}  Ng6 {[%clk 0:02:58]} 7. Be2 {[%clk 0:02:52]}  Nd7 {[%clk 0:02:59]} 8. O-O {[%clk 0:02:52]}  f6 {[%clk 0:02:59]} 9. exf6 {[%clk 0:02:46]}  Qxf6 {[%clk 0:03:00]} 10. Bg5 {[%clk 0:02:28]}  Qf7 {[%clk 0:03:00]} 11. Nc1 {[%clk 0:02:20]}  Bd6 {[%clk 0:02:59]} 12. Nd3 {[%clk 0:02:19]}  h6 {[%clk 0:02:58]} 13. Bh4 {[%clk 0:02:19]}  Nxh4 {[%clk 0:02:52]} 14. Nxh4 {[%clk 0:02:18]}  Bxd3 {[%clk 0:02:40]} 15. Bxd3 {[%clk 0:02:06]}  O-O {[%clk 0:02:39]} 16. Ng6 {[%clk 0:02:05]}  Rfe8 {[%clk 0:02:37]} 17. f4 {[%clk 0:02:05]}  c5 {[%clk 0:02:34]} 18. c3 {[%clk 0:02:01]}  cxd4 {[%clk 0:02:35]} 19. cxd4 {[%clk 0:02:00]}  Qf6 {[%clk 0:02:35]} 20. Ne5 {[%clk 0:02:00]}  Nf8 {[%clk 0:02:19]} 21. Qg4 {[%clk 0:01:50]}  Rac8 {[%clk 0:02:15]} 22. Rae1 {[%clk 0:01:46]}  a6 {[%clk 0:02:12]} 23. h4 {[%clk 0:01:35]}  b5 {[%clk 0:02:10]} 24. h5 {[%clk 0:01:35]}  Rc7 {[%clk 0:02:09]} 25. f5 {[%clk 0:01:26]}  Qg5 {[%clk 0:02:05]} 26. Qxg5 {[%clk 0:01:21]}  hxg5 {[%clk 0:02:05]} 27. f6 {[%clk 0:01:14]}  gxf6 {[%clk 0:01:53]} 28. Rxf6 {[%clk 0:01:13]}  Rec8 {[%clk 0:01:26]} 29. Ng6 {[%clk 0:00:51]}  Rc1 {[%clk 0:01:19]} 30. Kf1 {[%clk 0:00:44]}  Bg3 {[%clk 0:00:45]} 31. Rxc1 {[%clk 0:00:42]}  Rxc1+ {[%clk 0:00:45]} 32. Ke2 {[%clk 0:00:42]}  Nd7 {[%clk 0:00:43]} 33. Rxe6 {[%clk 0:00:37]}  Re1+ {[%clk 0:00:42]} 34. Kf3 {[%clk 0:00:37]}  Rxe6 {[%clk 0:00:43]} 35. Kxg3 {[%clk 0:00:37]}  Re3+ {[%clk 0:00:43]} 0-1


[Site "https://www.chess.com"]

[Event "Titled Tuesday Blitz June 21 Early 2022"]
[White "Luo, Terry"]
[Black "Kvaloy, Aksel Bu"]
[WhiteFideId "30931045"]
[BlackFideId "1528815"]
[WhiteElo "2024"]
[BlackElo "2006"]
[Result "1-0"]
[Round "08"]
[TimeControl "180+1"]
[Date "2022.06.21"]
[WhiteClock "0:01:11"]
[BlackClock "0:00:06"]

1. d4 {[%clk 0:03:00]}  Nf6 {[%clk 0:02:57]} 2. c4 {[%clk 0:03:01]}  e6 {[%clk 0:02:57]} 3. g3 {[%clk 0:03:02]}  d5 {[%clk 0:02:57]} 4. Bg2 {[%clk 0:03:02]}  Bb4+ {[%clk 0:02:52]} 5. Bd2 {[%clk 0:03:02]}  Be7 {[%clk 0:02:51]} 6. Nf3 {[%clk 0:03:03]}  O-O {[%clk 0:02:50]} 7. O-O {[%clk 0:03:03]}  Nbd7 {[%clk 0:02:49]} 8. Qc2 {[%clk 0:03:04]}  Ne4 {[%clk 0:02:47]} 9. Nc3 {[%clk 0:03:01]}  Nxd2 {[%clk 0:02:46]} 10. Nxd2 {[%clk 0:03:01]}  c6 {[%clk 0:02:45]} 11. e4 {[%clk 0:03:01]}  dxe4 {[%clk 0:02:44]} 12. Ndxe4 {[%clk 0:03:02]}  f5 {[%clk 0:02:43]} 13. Nd2 {[%clk 0:03:02]}  e5 {[%clk 0:02:43]} 14. dxe5 {[%clk 0:02:51]}  Nxe5 {[%clk 0:02:43]} 15. Rfe1 {[%clk 0:02:51]}  Bf6 {[%clk 0:02:39]} 16. Nf3 {[%clk 0:02:51]}  Nxf3+ {[%clk 0:02:37]} 17. Bxf3 {[%clk 0:02:52]}  Qc7 {[%clk 0:02:33]} 18. Rad1 {[%clk 0:02:48]}  f4 {[%clk 0:02:13]} 19. g4 {[%clk 0:02:45]}  h5 {[%clk 0:02:00]} 20. h3 {[%clk 0:02:40]}  hxg4 {[%clk 0:01:59]} 21. hxg4 {[%clk 0:02:40]}  Qf7 {[%clk 0:01:43]} 22. Ne4 {[%clk 0:02:35]}  Bh4 {[%clk 0:01:29]} 23. Nd6 {[%clk 0:02:33]}  Qf6 {[%clk 0:01:23]} 24. Nxc8 {[%clk 0:02:08]}  Raxc8 {[%clk 0:01:05]} 25. Rd7 {[%clk 0:02:09]}  Rf7 {[%clk 0:01:02]} 26. Rxf7 {[%clk 0:02:04]}  Kxf7 {[%clk 0:01:01]} 27. Qe4 {[%clk 0:01:58]}  Kf8 {[%clk 0:00:36]} 28. b3 {[%clk 0:01:55]}  a5 {[%clk 0:00:23]} 29. Kg2 {[%clk 0:01:54]}  a4 {[%clk 0:00:22]} 30. b4 {[%clk 0:01:34]}  Kg8 {[%clk 0:00:20]} 31. b5 {[%clk 0:01:30]}  cxb5 {[%clk 0:00:19]} 32. Qxb7 {[%clk 0:01:27]}  Rxc4 {[%clk 0:00:11]} 33. Bd5+ {[%clk 0:01:24]}  Kh7 {[%clk 0:00:10]} 34. Bxc4 {[%clk 0:01:24]}  bxc4 {[%clk 0:00:10]} 35. Qe4+ {[%clk 0:01:24]}  Kh8 {[%clk 0:00:07]} 36. Qe8+ {[%clk 0:01:15]}  Kh7 {[%clk 0:00:07]} 37. Qh5+ {[%clk 0:01:15]}  Qh6 {[%clk 0:00:05]} 38. Qxh6+ {[%clk 0:01:16]}  Kxh6 {[%clk 0:00:05]} 39. Rc1 {[%clk 0:01:16]}  Bf6 {[%clk 0:00:01]} 40. Rxc4 {[%clk 0:01:16]}  a3 {[%clk 0:00:02]} 41. Rxf4 {[%clk 0:01:16]}  Kg5 {[%clk 0:00:03]} 42. Ra4 {[%clk 0:01:16]}  Bb2 {[%clk 0:00:02]} 43. Kg3 {[%clk 0:01:16]}  Kg6 {[%clk 0:00:01]} 44. f4 {[%clk 0:01:15]}  Bc1 {[%clk 0:00:02]} 45. Ra6+ {[%clk 0:01:15]}  Kf7 {[%clk 0:00:02]} 46. g5 {[%clk 0:01:16]}  g6 {[%clk 0:00:02]} 47. Kg4 {[%clk 0:01:16]}  Kg7 {[%clk 0:00:02]} 48. Ra7+ {[%clk 0:01:16]}  Kg8 {[%clk 0:00:02]} 49. f5 {[%clk 0:01:17]}  gxf5+ {[%clk 0:00:02]} 50. Kxf5 {[%clk 0:01:18]}  Bb2 {[%clk 0:00:02]} 51. g6 {[%clk 0:01:18]}  Kf8 {[%clk 0:00:02]} 52. Ke6 {[%clk 0:01:15]}  Kg8 {[%clk 0:00:02]} 53. Kd5 {[%clk 0:01:14]}  Kf8 {[%clk 0:00:03]} 54. Kc4 {[%clk 0:01:14]}  Kg8 {[%clk 0:00:03]} 55. Kb3 {[%clk 0:01:15]}  Bc1 {[%clk 0:00:02]} 56. Rxa3 {[%clk 0:01:09]}  Bxa3 {[%clk 0:00:03]} 57. Kxa3 {[%clk 0:01:09]}  Kg7 {[%clk 0:00:04]} 58. Kb4 {[%clk 0:01:10]}  Kxg6 {[%clk 0:00:05]} 59. a4 {[%clk 0:01:10]}  Kf7 {[%clk 0:00:05]} 60. a5 {[%clk 0:01:11]}  Ke8 {[%clk 0:00:06]} 61. a6 {[%clk 0:01:10]}  Kd8 {[%clk 0:00:07]} 62. a7 {[%clk 0:01:10]}  Kc8 {[%clk 0:00:08]} 63. a8=Q+ {[%clk 0:01:10]}  Kc7 {[%clk 0:00:06]} 64. Qd5 {[%clk 0:01:10]}  Kb6 {[%clk 0:00:06]} 65. Qd6+ {[%clk 0:01:10]}  Kb7 {[%clk 0:00:06]} 66. Kb5 {[%clk 0:01:10]}  Ka8 {[%clk 0:00:07]} 67. Qd7 {[%clk 0:01:10]}  Kb8 {[%clk 0:00:05]} 68. Kb6 {[%clk 0:01:11]}  Ka8 {[%clk 0:00:06]} 69. Qc8# {[%clk 0:01:11]} 1-0


[Site "https://www.chess.com"]